Workbook

Sheet Index
B1: ='Input | General'!$B$1 -> Jemena Electricity 2022-26 True-Up for Previous Period - Capital expenditure sharing scheme model
B2: Index
C4: Model index
C6: Sheet Name | D6: Sheet Description
C7: Input | General | D7: Inputs NSP name, regulatory years for the prior and forecast regulatory control period etc.
C8: Input | Inflation and Disc Rate | D8: Inputs the inflation and discount rate
C9: Input | Reported Capex | D9: Inputs the reported capital expenditure from the prior regulatory control period as well as the AER's forecast etc.
C10: Calc | CESS Revenue Increments | D10: Calculates the CESS payments from the prior regulatory control period
C11: Output | Models | D11: Outputs the CESS revenue increments needed as a post tax revenue model input
C13: End

Sheet Input | General
B1: =$D$6&" "&$D$8&" "&D7&" - "&"Capital expenditure sharing scheme model" -> Jemena Electricity 2022-26 True-Up for Previous Period - Capital expenditure sharing scheme model | G1: Key: | H1: Input | I1: Internal Link
B2: Input | General
B4: Input | General
C6: NSP Name | D6: Jemena Electricity
C7: Determination stage | D7: True-Up for Previous Period
C8: Determination years | D8: 2022-26
C9: Base regulatory year | D9: 2021-2022
C11: Regulatory control period details
D12: Year 1 | E12: Year 2 | F12: Year 3 | G12: Year 4 | H12: Year 5
C13: Regulatory control period CESS applied in (regulatory years) | D13: CY16 | E13: CY17 | F13: CY18 | G13: CY19 | H13: CY20
C14: CESS to apply to this year's expenditure (Yes/No) | D14: Yes | E14: Yes | F14: Yes | G14: Yes | H14: Yes
C15: Actual or estimate year | D15: Actual | E15: Actual | F15: Actual | G15: Actual | H15: Actual
D17: Year 1 | E17: Year 2 | F17: Year 3 | G17: Year 4 | H17: Year 5
C18: Regulatory control period CESS revenue increment applied in (regulatory years) | D18: =D9 -> 2021-2022 | E18: =IF(LEN(D18)>4,CONCATENATE(LEFT(D18,4)+1&"–"&IF(RIGHT(D18,2)+1>9,"","0")&RIGHT(D18,2)+1),D18+1) -> 2022–23 | F18: =IF(LEN(E18)>4,CONCATENATE(LEFT(E18,4)+1&"–"&IF(RIGHT(E18,2)+1>9,"","0")&RIGHT(E18,2)+1),E18+1) -> 2023–24 | G18: =IF(LEN(F18)>4,CONCATENATE(LEFT(F18,4)+1&"–"&IF(RIGHT(F18,2)+1>9,"","0")&RIGHT(F18,2)+1),F18+1) -> 2024–25 | H18: =IF(LEN(G18)>4,CONCATENATE(LEFT(G18,4)+1&"–"&IF(RIGHT(G18,2)+1>9,"","0")&RIGHT(G18,2)+1),G18+1) -> 2025–26
B21: End

Sheet Input | Inflation and Disc Rate
B1: ='Input | General'!$B$1 -> Jemena Electricity 2022-26 True-Up for Previous Period - Capital expenditure sharing scheme model | I1: Key: | J1: Input | K1: Internal Link
C2: Input | Inflation and Discount rate
C4: Input | Inflation
D6: Source | E6: Unit
F7: CY15 | G7: ='Input | General'!D13 -> CY16 | H7: ='Input | General'!E13 -> CY17 | I7: ='Input | General'!F13 -> CY18 | J7: ='Input | General'!G13 -> CY19 | K7: ='Input | General'!H13 -> CY20 | L7: HY21 | M7: ='Input | General'!D18 -> 2021-2022 | N7: ='Input | General'!E18 -> 2022–23 | O7: ='Input | General'!F18 -> 2023–24 | P7: ='Input | General'!G18 -> 2024–25 | Q7: ='Input | General'!H18 -> 2025–26
C8: Actual CPI Inflation Rate | D8: JEN | E8: Per cent | G8: 0.01503759398 | H8: 0.01023255814 | I8: 0.01933701657 | J8: 0.02077687444 | K8: 0.01592920354 | L8: 0.01219512195
C9: Forecast CPI Inflation Rate | D9: JEN | E9: Per cent | M9: 0.02365 | N9: 0.02365 | O9: 0.02365 | P9: 0.02365 | Q9: 0.02365
C10: ="CPI Index (base year "&F7&")" -> CPI Index (base year CY15) | D10: JEN | E10: Index | F10: 1 | G10: =IF(G7<>"",(F10*(1+G8)),"") -> 1.015037594 | H10: 1.025424025 | I10: 1.045252667 | J10: 1.06696975 | K10: 1.083965728 | L10: 1.097184823 | M10: =IF(M7<>"",(L10*(1+M9)),"") -> 1.123133244 | N10: =IF(N7<>"",(M10*(1+N9)),"") -> 1.149695345 | O10: =IF(O7<>"",(N10*(1+O9)),"") -> 1.17688564 | P10: =IF(P7<>"",(O10*(1+P9)),"") -> 1.204718985 | Q10: =IF(Q7<>"",(P10*(1+Q9)),"") -> 1.233210589
C13: Actual CPI Inflation Rate | D13: JEN | E13: Per cent | G13: 0.01510859301 | H13: 0.01023255814 | I13: 0.01933701657 | J13: 0.02077687444 | K13: 0.01592920354 | L13: 0.01219512195
C14: Forecast CPI Inflation Rate | D14: JEN | E14: Per cent | M14: 0.0199938725 | N14: 0.0199938725 | O14: 0.0199938725 | P14: 0.0199938725 | Q14: 0.0199938725
C15: ="CPI Index (base year "&F7&")" -> CPI Index (base year CY15) | D15: JEN | E15: Index | F15: 1 | G15: =IF(G7<>"",(F15*(1+G13)),"") -> 1.015108593 | H15: 1.025495751 | I15: 1.045325779 | J15: 1.067044381 | K15: 1.084041549 | L15: 1.097261568 | M15: =IF(M7<>"",(L15*(1+M14)),"") -> 1.119200075 | N15: =IF(N7<>"",(M15*(1+N14)),"") -> 1.141577219 | O15: =IF(O7<>"",(N15*(1+O14)),"") -> 1.164401768 | P15: =IF(P7<>"",(O15*(1+P14)),"") -> 1.187682669 | Q15: =IF(Q7<>"",(P15*(1+Q14)),"") -> 1.211429045
C17: Input | Discount rate
D19: Source | E19: Unit | F19: =F7 -> CY15 | G19: =G7 -> CY16 | H19: =H7 -> CY17 | I19: CY18 | J19: CY19 | K19: CY20 | L19: =L7 -> HY21 | M19: 2021-2022 | N19: 2022–23 | O19: 2023–24 | P19: 2024–25 | Q19: 2025–26
C20: Real Vanilla WACC | D20: JEN | E20: Per cent | G20: 0.03932862871 | H20: 0.03873057145 | I20: 0.03821466541 | J20: 0.03766911607 | K20: 0.03656195102 | L20: 0.012022317
C21: Forecast Real Vanilla WACC | D21: JEN | E21: Per cent | M21: 0.02850449876 | N21: 0.02641352507 | O21: 0.02432255139 | P21: 0.0222315777 | Q21: 0.02014060402
C22: Nominal Vanilla WACC (fixed, real, time varying) | D22: Calculated | E22: Per cent | G22: =IF(AND(G13<>"",G20<>""),((1+G20)*(1+G13)-1),"") -> 0.05503142196 | H22: 0.04935944242 | I22: 0.05829063961 | J22: 0.059228637 | K22: 0.05307355732 | L22: 0.02436405257 | M22: =IF(AND(M14<>"",M21<>""),((1+M21)*(1+M14)-1),"") -> 0.04906828658 | N22: =IF(AND(N14<>"",N21<>""),((1+N21)*(1+N14)-1),"") -> 0.04693550623 | O22: =IF(AND(O14<>"",O21<>""),((1+O21)*(1+O14)-1),"") -> 0.04480272589 | P22: =IF(AND(P14<>"",P21<>""),((1+P21)*(1+P14)-1),"") -> 0.04266994554 | Q22: =IF(AND(Q14<>"",Q21<>""),((1+Q21)*(1+Q14)-1),"") -> 0.04053716519
B24: End

Sheet Input | Reported Capex
B1: ='Input | General'!$B$1 -> Jemena Electricity 2022-26 True-Up for Previous Period - Capital expenditure sharing scheme model | I1: Key: | J1: AER Final Decision | K1: Input
B2: Input | Capex
B4: Input | Capex Allowance
D6: Source | E6: Unit | F6: Basis | H6: =IF('Input | General'!D14="Yes",'Input | General'!D13,"n/a") -> CY16 | I6: =IF('Input | General'!E14="Yes",'Input | General'!E13,"n/a") -> CY17 | J6: =IF('Input | General'!F14="Yes",'Input | General'!F13,"n/a") -> CY18 | K6: =IF('Input | General'!G14="Yes",'Input | General'!G13,"n/a") -> CY19 | L6: =IF('Input | General'!H14="Yes",'Input | General'!H13,"n/a") -> CY20
C8: Total capex allowance | D8: AER | E8: $millions | F8: ='Input | Inflation and Disc Rate'!$F$7 -> CY15 | H8: 167.7530666 | I8: 203.8421376 | J8: 169.3165606 | K8: 168.4943609 | L8: 153.1220467
C9: Customer Contributions | D9: AER | E9: $millions | F9: ='Input | Inflation and Disc Rate'!$F$7 -> CY15 | H9: 29.65752004 | I9: 31.88217687 | J9: 29.2122314 | K9: 30.28658567 | L9: 32.2015256
C10: Asset Disposals | D10: AER | E10: $millions | F10: ='Input | Inflation and Disc Rate'!$F$7 -> CY15 | H10: 3.693924231 | I10: 0.1628738462 | J10: 0.1651246154 | K10: 0.2577642308 | L10: 0.1689611538
C12: Total capex allowance applicable to CESS | D12: Calculated | E12: $millions | F12: ='Input | Inflation and Disc Rate'!$F$7 -> CY15 | H12: =IF(H6="", "", H8-H9-H10) -> 134.4016223 | I12: =IF(I6="", "", I8-I9-I10) -> 171.7970869 | J12: =IF(J6="", "", J8-J9-J10) -> 139.9392046 | K12: =IF(K6="", "", K8-K9-K10) -> 137.950011 | L12: =IF(L6="", "", L8-L9-L10) -> 120.7515599
B14: Input | Actual / Estimate Capex
D16: Source | E16: Unit | F16: Basis | H16: =H6 -> CY16 | I16: =I6 -> CY17 | J16: =J6 -> CY18 | K16: =K6 -> CY19 | L16: =L6 -> CY20
C18: Total capex | D18: AER | E18: $millions | F18: nominal | H18: 120.4673662 | I18: 155.9191645 | J18: 149.718815 | K18: 145.2359808 | L18: 147.055543
C19: Customer Contributions | D19: AER | E19: $millions | F19: nominal | H19: 12.87470794 | I19: 24.22637351 | J19: 24.51139338 | K19: 47.40634735 | L19: 36.77213699
C20: Asset Disposals | D20: AER | E20: $millions | F20: nominal | H20: 0.13893909 | I20: 0.2198215 | J20: 0.34981207 | K20: 0.4376241 | L20: 3.52333684
C21: Other excludable capex | D21: AER | E21: $millions | F21: nominal
C23: Total actual capex applicable to CESS | D23: Calculated | E23: $millions | F23: nominal | H23: =IF(H16="", "", H18-H19-H20-H21) -> 107.4537192 | I23: =IF(I16="", "", I18-I19-I20-I21) -> 131.4729695 | J23: =IF(J16="", "", J18-J19-J20-J21) -> 124.8576096 | K23: =IF(K16="", "", K18-K19-K20-K21) -> 97.39200937 | L23: =IF(L16="", "", L18-L19-L20-L21) -> 106.7600692
B25: Input | Capex Deferred to following regulatory period
H27: ='Input | General'!D18 -> 2021-2022 | I27: ='Input | General'!E18 -> 2022–23 | J27: ='Input | General'!F18 -> 2023–24 | K27: ='Input | General'!G18 -> 2024–25 | L27: ='Input | General'!H18 -> 2025–26
C29: Capex deferred and re-proposed | D29: JEN | E29: $millions | F29: nominal | H29: 8.607071063 | I29: 0 | J29: 0 | K29: 0 | L29: 0
C30: Capex deferred and re-proposed | D30: Calculated | E30: $millions | F30: ='Input | Inflation and Disc Rate'!$F$7 -> CY15 | H30: =IF(H29<>"",H29/('Input | Inflation and Disc Rate'!K10*(1+'Input | Inflation and Disc Rate'!M9)^0.5),"") -> 7.848092117 | I30: =IF(I29<>"",I29/('Input | Inflation and Disc Rate'!M10*(1+'Input | Inflation and Disc Rate'!N9)^0.5),"") -> 0 | J30: =IF(J29<>"",J29/('Input | Inflation and Disc Rate'!N10*(1+'Input | Inflation and Disc Rate'!O9)^0.5),"") -> 0 | K30: =IF(K29<>"",K29/('Input | Inflation and Disc Rate'!O10*(1+'Input | Inflation and Disc Rate'!P9)^0.5),"") -> 0 | L30: =IF(L29<>"",L29/('Input | Inflation and Disc Rate'!P10*(1+'Input | Inflation and Disc Rate'!Q9)^0.5),"") -> 0
C31: Capex deferred and re-proposed | D31: AER | E31: $millions | F31: nominal | H31: =IF(H29<>"",H30*'Input | Inflation and Disc Rate'!K15*(1+'Input | Inflation and Disc Rate'!M14)^0.5,"") -> 8.592287522 | I31: =IF(I29<>"",I30*'Input | Inflation and Disc Rate'!M15*(1+'Input | Inflation and Disc Rate'!N14)^0.5,"") -> 0 | J31: =IF(J29<>"",J30*'Input | Inflation and Disc Rate'!N15*(1+'Input | Inflation and Disc Rate'!O14)^0.5,"") -> 0 | K31: =IF(K29<>"",K30*'Input | Inflation and Disc Rate'!O15*(1+'Input | Inflation and Disc Rate'!P14)^0.5,"") -> 0 | L31: =IF(L29<>"",L30*'Input | Inflation and Disc Rate'!P15*(1+'Input | Inflation and Disc Rate'!Q14)^0.5,"") -> 0
B33: End

Sheet Calc | CESS Revenue Increments
B1: ='Input | General'!$B$1 -> Jemena Electricity 2022-26 True-Up for Previous Period - Capital expenditure sharing scheme model | K1: Key: | L1: Input | M1: Internal Link
B2: Input | CESS Payments
B4: Calc | NPV of CESS payments
C6: Regulatory period 1
C7: Year | D7: =IF('Input | General'!D14="Yes",'Input | General'!D13,"n/a") -> CY16 | E7: =IF('Input | General'!E14="Yes",'Input | General'!E13,"n/a") -> CY17 | F7: =IF('Input | General'!F14="Yes",'Input | General'!F13,"n/a") -> CY18 | G7: =IF('Input | General'!G14="Yes",'Input | General'!G13,"n/a") -> CY19 | H7: =IF('Input | General'!H14="Yes",'Input | General'!H13,"n/a") -> CY20
C8: Discount rate (Real WACC) | D8: ='Input | Inflation and Disc Rate'!G20 -> 0.03932862871 | E8: ='Input | Inflation and Disc Rate'!H20 -> 0.03873057145 | F8: ='Input | Inflation and Disc Rate'!I20 -> 0.03821466541 | G8: ='Input | Inflation and Disc Rate'!J20 -> 0.03766911607 | H8: ='Input | Inflation and Disc Rate'!K20 -> 0.03656195102
C9: Discount rate (Nominal, fixed real WACC) | D9: ='Input | Inflation and Disc Rate'!G22 -> 0.05503142196 | E9: ='Input | Inflation and Disc Rate'!H22 -> 0.04935944242 | F9: ='Input | Inflation and Disc Rate'!I22 -> 0.05829063961 | G9: ='Input | Inflation and Disc Rate'!J22 -> 0.059228637 | H9: ='Input | Inflation and Disc Rate'!K22 -> 0.05307355732
C10: Capex allowance | D10: ='Input | Reported Capex'!H$12*'Input | Inflation and Disc Rate'!G$15*(1+'Input | Inflation and Disc Rate'!G$20)^0.5 -> 139.0892164 | E10: ='Input | Reported Capex'!I$12*'Input | Inflation and Disc Rate'!H$15*(1+'Input | Inflation and Disc Rate'!H$20)^0.5 -> 179.5564943 | F10: ='Input | Reported Capex'!J$12*'Input | Inflation and Disc Rate'!I$15*(1+'Input | Inflation and Disc Rate'!I$20)^0.5 -> 149.0509133 | G10: ='Input | Reported Capex'!K$12*'Input | Inflation and Disc Rate'!J$15*(1+'Input | Inflation and Disc Rate'!J$20)^0.5 -> 149.9455799 | H10: ='Input | Reported Capex'!L$12*'Input | Inflation and Disc Rate'!K$15*(1+'Input | Inflation and Disc Rate'!K$20)^0.5 -> 133.2712004
C11: Actual capex | D11: ='Input | Reported Capex'!H23*(1+D$9)^0.5 -> 110.3707895 | E11: ='Input | Reported Capex'!I23*(1+E$9)^0.5 -> 134.678605 | F11: ='Input | Reported Capex'!J23*(1+F$9)^0.5 -> 128.4450859 | G11: ='Input | Reported Capex'!K23*(1+G$9)^0.5 -> 100.2347203 | H11: ='Input | Reported Capex'!L23*(1+H$9)^0.5 -> 109.5565129
C12: Underspend | D12: =(D10-D11) -> 28.7184269 | E12: =(E10-E11) -> 44.87788923 | F12: =(F10-F11) -> 20.60582741 | G12: =(G10-G11) -> 49.71085959 | H12: =(H10-H11) -> 23.71468749
C13: Year 1 benefit | E13: =$D$12*$E$8 -> 1.112281085 | F13: =$D$12*$F$8*(1+'Input | Inflation and Disc Rate'!H13) -> 1.10869495 | G13: =$D$12*$G$8*(1+'Input | Inflation and Disc Rate'!H13)*(1+'Input | Inflation and Disc Rate'!I13) -> 1.114000108 | H13: =$D$12*$H$8*(1+'Input | Inflation and Disc Rate'!H13)*(1+'Input | Inflation and Disc Rate'!I13)*(1+'Input | Inflation and Disc Rate'!J13) -> 1.103722736
C14: Year 2 benefit | F14: =$E$12*F$8 -> 1.714993521 | G14: =$E$12*G$8*(1+'Input | Inflation and Disc Rate'!I13) -> 1.723199846 | H14: =$E$12*H$8*(1+'Input | Inflation and Disc Rate'!I13)*(1+'Input | Inflation and Disc Rate'!J13) -> 1.707302212
C15: Year 3 benefit | G15: =$F$12*G$8 -> 0.7762033044 | H15: =$F$12*$H$8*(1+'Input | Inflation and Disc Rate'!J13) -> 0.7690423264
C16: Year 4 benefit | H16: =$G$12*$H$8 -> 1.817526014
C17: Year 5 benefit
C18: Total financing benefit | D18: =SUM(D13:D17) -> 0 | E18: =SUM(E13:E17) -> 1.112281085 | F18: =SUM(F13:F17) -> 2.823688472 | G18: =SUM(G13:G17) -> 3.613403259 | H18: =SUM(H13:H17) -> 5.397593288
C19: Discount factor (end of year) | D19: =E19*(1+E$9) -> 1.23873284 | E19: =F19*(1+F$9) -> 1.18046571 | F19: =G19*(1+G$9) -> 1.115445669 | G19: =H19*(1+H$9) -> 1.053073557 | H19: 1
C20: NPV underspend | D20: =D12*D19 -> 35.5744585 | E20: =E12*E19 -> 52.97680938 | F20: =F12*F19 -> 22.98468094 | G20: =G12*G19 -> 52.34919175 | H20: =H12*H19 -> 23.71468749
C21: NPV financing benefit | D21: =D18*D19 -> 0 | E21: =E18*E19 -> 1.313009681 | F21: =F18*F19 -> 3.149671076 | G21: =G18*G19 -> 3.805179424 | H21: =H18*H19 -> 5.397593288
C23: Regulatory period 2
C24: Year | D24: ='Input | General'!$D$18 -> 2021-2022 | E24: ='Input | General'!$E$18 -> 2022–23 | F24: ='Input | General'!$F$18 -> 2023–24 | G24: ='Input | General'!$G$18 -> 2024–25 | H24: ='Input | General'!$H$18 -> 2025–26
C25: Discount rate: | D25: ='Input | Inflation and Disc Rate'!M$22 -> 0.04906828658 | E25: ='Input | Inflation and Disc Rate'!N$22 -> 0.04693550623 | F25: ='Input | Inflation and Disc Rate'!O$22 -> 0.04480272589 | G25: ='Input | Inflation and Disc Rate'!P$22 -> 0.04266994554 | H25: ='Input | Inflation and Disc Rate'!Q$22 -> 0.04053716519
C26: Increase in forecast capex in regulatory period 2 attributable to capex deferred in regulatory period 1 | D26: ='Input | Reported Capex'!H31 -> 8.592287522 | E26: ='Input | Reported Capex'!I31 -> 0 | F26: ='Input | Reported Capex'!J31 -> 0 | G26: ='Input | Reported Capex'!K31 -> 0 | H26: ='Input | Reported Capex'!L31 -> 0
C27: Discount factor (middle of year 5) | D27: =1/((1+D25)^(0.5)*(1+'Input | Inflation and Disc Rate'!$L$22)) -> 0.9531116788 | E27: =1/((1+E25)^(0.5)*(1+D25)*(1+'Input | Inflation and Disc Rate'!$L$22)) -> 0.9094565339 | F27: =1/((1+F25)^(0.5)*(1+E25)*(1+D25)*(1+'Input | Inflation and Disc Rate'!$L$22)) -> 0.8695705731 | G27: =1/((1+G25)^(0.5)*(1+F25)*(1+E25)*(1+D25)*(1+'Input | Inflation and Disc Rate'!$L$22)) -> 0.833132849 | H27: =1/((1+H25)^(0.5)*(1+G25)*(1+F25)*(1+E25)*(1+D25)*(1+'Input | Inflation and Disc Rate'!$L$22)) -> 0.799856415
C28: NPV of increase in forecast capex from deferred capex | D28: =D26*D27 -> 8.189409585 | E28: =E26*E27 -> 0 | F28: =F26*F27 -> 0 | G28: =G26*G27 -> 0 | H28: =H26*H27 -> 0
C30: CESS calculation (post-adjustment)
C31: Total underspend (NPV) adjusted for deferrals | D31: =SUM(D20:H20)-SUM(D28:H28) -> 179.4104185
C32: Relevant sharing ratio | D32: 0.3
C33: Consumer share | D33: =(1-D32)*D31 -> 125.5872929
C34: NSP share | D34: =D32*D31 -> 53.82312554
C35: Total NSP financing benefit (NPV) | D35: =SUM(D21:H21) -> 13.66545347
C36: NPV of CESS payments (post-adjustment) | D36: =D34-D35 -> 40.15767207
C37: NPV of CESS payments (post-adjustment) as at 30 June 2021 | D37: =D36*(1+'Input | Inflation and Disc Rate'!L22) -> 41.13607571
B39: Calc | Total CESS Payments
D41: ='Input | General'!D18 -> 2021-2022 | E41: ='Input | General'!E18 -> 2022–23 | F41: ='Input | General'!F18 -> 2023–24 | G41: ='Input | General'!G18 -> 2024–25 | H41: ='Input | General'!H18 -> 2025–26
C42: Discount factor | D42: =1/(1+'Input | Inflation and Disc Rate'!M21) -> 0.9722854895 | E42: =D42/(1+'Input | Inflation and Disc Rate'!N21) -> 0.9472648847 | F42: =E42/(1+'Input | Inflation and Disc Rate'!O21) -> 0.9247720685 | G42: =F42/(1+'Input | Inflation and Disc Rate'!P21) -> 0.9046600484 | H42: =G42/(1+'Input | Inflation and Disc Rate'!Q21) -> 0.8867993733
C43: =CONCATENATE("CESS Payment Per Year ($", 'Output | Models'!$F$8," million)") -> CESS Payment Per Year ($2020–21 million) | D43: =D37/(SUM(D42:H42)) -> 8.873600379 | E43: =D43 -> 8.873600379 | F43: =E43 -> 8.873600379 | G43: =F43 -> 8.873600379 | H43: =G43 -> 8.873600379
C45: =CONCATENATE("Total CESS Payment ($", 'Output | Models'!$F$8," million)") -> Total CESS Payment ($2020–21 million) | D45: =SUM(D43:H43) -> 44.36800189
B48: End

Sheet Output | Models
B1: ='Input | General'!$B$1 -> Jemena Electricity 2022-26 True-Up for Previous Period - Capital expenditure sharing scheme model | K1: Key: | L1: Input | M1: Internal Link
B2: Output | Models
B4: Inputs for Post Tax Revenue Model | J4: Note. The dollar base should be consistent with the post tax revenue model
C6: Revenue Adjustments | D6: Source | E6: Unit | F6: Basis | J6: ='Calc | CESS Revenue Increments'!D41 -> 2021-2022 | K6: ='Calc | CESS Revenue Increments'!E41 -> 2022–23 | L6: ='Calc | CESS Revenue Increments'!F41 -> 2023–24 | M6: ='Calc | CESS Revenue Increments'!G41 -> 2024–25 | N6: ='Calc | CESS Revenue Increments'!H41 -> 2025–26 | O6: Total
C8: CESS increments as per NER 6A.5.4(a)(5) | D8: Calc | CESS Revenue Increments | E8: $millions | F8: =IF(LEN(J6)>4,CONCATENATE(LEFT(J6,4)-1&"–"&IF(RIGHT(J6,2)="00","99",IF(RIGHT(J6,2)-1<10,"0","")&RIGHT(J6,2)-1)),J6-1) -> 2020–21 | J8: ='Calc | CESS Revenue Increments'!D43 -> 8.873600379 | K8: ='Calc | CESS Revenue Increments'!E43 -> 8.873600379 | L8: ='Calc | CESS Revenue Increments'!F43 -> 8.873600379 | M8: ='Calc | CESS Revenue Increments'!G43 -> 8.873600379 | N8: ='Calc | CESS Revenue Increments'!H43 -> 8.873600379 | O8: =SUM(J8:N8) -> 44.36800189
B11: End
